Cogmind - Beta 16 --- EXPLORER MODE // 2025.11.25 @ 07:54:43 Player: K.K.Y. Result: Destroyed by Autobeam Turret with Autobeam Performance ------------- Evolutions (0) 0 Regions Visited (3) 600 Robots Destroyed (27) 135 Value Destroyed (493) 493 Prototype IDs (12) 240 Alien Tech Used (0) 0 Bonus (60) 60 TOTAL SCORE: 1528 Bonus ------- Follower Combat Kills 60 Cogmind --------- Core Integrity 0/250 Matter 263/300 Energy 100/100 System Corruption 0% Temperature Cool (6) Movement Core (400) Ox7 Location -10/Subcaves Parts ------- > --- POWER (1) -------- (None) > --- PROPULSION (2) --- (None) > --- UTILITY (3) ------ Large Storage Unit > --- WEAPON (2) ------- Battle Rifle > --- INVENTORY (15) --- Light Nuclear Core Huge Storage Unit Structural Scanner Terrain Scanner Improved Terrain Scanner Improved Terrain Scanner Scrap Shield Power Bank Peak State ------------ > --- POWER ------------ Ion Engine > --- PROPULSION ------- Light Treads Light Treads > --- UTILITY ---------- Medium Storage Unit Large Storage Unit Light Armor Plating > --- WEAPON ----------- Light Cannon Light Cannon > --- INVENTORY -------- Terrain Scanner [Rating: 8] Favorites ----------- Power Ion Engine Engine Ion Engine Propulsion Light Treads Treads Light Treads Utility Large Storage Unit Storage Large Storage Unit Protection Light Armor Plating Weapon Light Cannon Energy Gun Medium Laser Ballistic Gun Assault Rifle Ballistic Cannon Light Cannon Special Weapon Mining Laser Build | -11 -10 -10 -10 ------- Run | Yrd Mat Min Sub Slots Evolved 1 | . 1 . . Power . | . . . . Propulsion . | . . . . Utility 1 | . 1 . . Weapon . | . . . . Parts Attached 13 | 7 3 2 1 Power 1 | 1 . . . Engine 1 | 1 . . . Core . | . . . . Reactor . | . . . . Propulsion 2 | 2 . . . Treads 2 | 2 . . . Leg . | . . . . Wheel . | . . . . Hover . | . . . . Flight . | . . . . Utility 3 | 2 1 . . Device . | . . . . Storage 2 | 1 1 . . Processor . | . . . . Hackware . | . . . . Protection 1 | 1 . . . Artifact . | . . . . Weapon 7 | 2 2 2 1 Energy Gun 1 | 1 . . . Energy Cannon . | . . . . Ballistic Gun 2 | 1 . . 1 Ballistic Cannon 2 | . 2 . . Launcher . | . . . . Special Weapon 2 | . . 2 . Impact Weapon . | . . . . Slashing Weapon . | . . . . Piercing Weapon . | . . . . Special Melee Weapon . | . . . . Unidentified Prototypes . | . . . . Parts Lost 8 | . . . 8 Power 1 | . . . 1 Propulsion 2 | . . . 2 Utility 1 | . . . 1 Weapon 4 | . . . 4 Highest Loss Streak 4 | . . . 4 To Critical Strikes . | . . . . Average Backups 6 | . 1 6 8 Power . | . . . 1 Propulsion . | . . . . Utility 4 | . 1 4 5 Weapon 1 | . . 1 1 Tool/Special . | . . . . Unused Backups 8 | . . . 8 Power 1 | . . . 1 Propulsion . | . . . . Utility 7 | . . . 7 Weapon . | . . . . Tool/Special . | . . . . Average Slot Usage (%) 72 | . 86 83 60 Engine 11 | . 12 12 11 Treads 20 | . 25 25 16 Storage 12 | . 12 12 12 Protection 8 | . 12 12 4 Ballistic Cannon 12 | . 20 16 7 Special Weapon 4 | . . 4 5 Peak Build Rating 8 | 7 8 8 8 Average Rating 6 | 5 6 7 6 On Entrance 5 | . 7 7 7 Avg Prop Armor Cover (%) . | . . . . Naked Turns . | . . . . Heaviest Build 34 | 22 34 34 32 Greatest Support 40 | 40 40 40 40 Greatest Overweight (x) 7 | . . . 7 Average Overweight (x) . | . . . . Largest Inventory Capacity 15 | 10 15 15 15 Average Capacity 14 | 8 12 15 15 Most Carried 10 | 5 4 9 10 Average Carried 7 | . 1 6 9 Final Capacity 15 | 10 15 15 15 Final Carried 9 | . 3 9 9 Class Distribution -------------------- 100% | Hacker-Mutant Dominant Class ---------------- Hacker-Mutant | -10/Materials Hacker-Mutant | -10/Mines Hacker-Mutant | -10/Subcaves Resources | -11 -10 -10 -10 ----------- Run | Yrd Mat Min Sub Matter Collected 991 | 204 264 324 199 Remotely . | . . . . Salvage Created 469 | . 231 46 192 Parts 35 | . 20 2 13 Haulers Intercepted 1 | . 1 . . Recyclers Shooed 1 | . 1 . . Parts Field Recycled . | . . . . Retrieved Matter . | . . . . Parts Self-Destructed . | . . . . Prevented . | . . . . Parts Restored . | . . . . Kills | -11 -10 -10 -10 ------- Run | Yrd Mat Min Sub Combat Hostiles Destroyed 32 | . 6 15 11 Guns 6 | . 2 . 4 Cannons 26 | . 4 15 7 Classes Destroyed 11 | . 7 1 3 Worker 1 | . 1 . . Builder 1 | . 1 . . Tunneler 1 | . 1 . . Hauler 1 | . 1 . . Recycler 1 | . 1 . . Turret 1 | . . . 1 Watcher 2 | . 2 . . Swarmer 12 | . 6 2 4 Artisan 1 | . . . 1 Subdweller 7 | . . . 7 Assembled 13 | . . 13 . Best Kill Streak 8 | . 4 8 4 Combat Bots Only 8 | . 2 8 4 Max Kills in Single Turn 1 | . 1 1 1 Gunslinging . | . . . . Exploded . | . . . . Melee . | . . . . Uniques/NPCs Destroyed . | . . . . Combat | -11 -10 -10 -10 -------- Run | Yrd Mat Min Sub Hostile Shots Fired 199 | . 13 47 139 Missed 72 | . 4 14 54 Hits 127 | . 9 33 85 Melee 5 | . . 5 . Projectile 122 | . 9 28 85 AOE 1 | . . . 1 Damage Taken 1188 | . 54 323 811 Core 250 | . . 53 197 Absorbed by Shields . | . . . . Ignored by Resistances 720 | . 40 198 482 Core Remaining (%) 100 | 100 . . . Volleys Fired 333 | . 28 80 225 Largest 2 | . 2 2 2 Hottest 200 | . 70 200 130 Shots Fired 419 | . 54 125 240 Gun 39 | . 22 . 17 Cannon 154 | . 32 76 46 Launcher . | . . . . Special 226 | . . 49 177 Kinetic 183 | . 44 76 63 Thermal 236 | . 10 49 177 Explosive . | . . . . Electromagnetic . | . . . . Robot Hit Streak 37 | . 6 17 37 Robot Miss Streak 2 | . 2 1 1 Penetration Max . | . . . . Secondary Targets . | . . . . Shots Hit Robots 153 | . 33 58 62 Core Hits 57 | . 13 26 18 Critical Kills . | . . . . Critical Parts Destroyed . | . . . . Critical Strikes 6 | . 1 2 3 Burn 1 | . 1 . . Blast 5 | . . 2 3 Melee Attacks . | . . . . Impact . | . . . . Slashing . | . . . . Piercing . | . . . . Sneak Attacks . | . . . . Combat Hostiles . | . . . . Follow-up Attacks . | . . . . Damage Inflicted 2709 | . 568 1076 1065 Guns 446 | . 182 . 264 Cannons 2039 | . 375 1031 633 Explosions 45 | . . 45 . Melee . | . . . . Ramming 11 | . 11 . . Kinetic 2397 | . 469 1031 897 Thermal 301 | . 88 45 168 Explosive . | . . . . Electromagnetic . | . . . . Impact . | . . . . Slashing . | . . . . Piercing . | . . . . Highest Corruption . | . . . . Average Corruption . | . . . . Corruption Purged . | . . . . Corruption Blocked . | . . . . Overload Shots . | . . . . Overflow Damage 57 | . 14 43 . Projectiles 14 | . 14 . . Explosions 43 | . . 43 . Melee . | . . . . Knockbacks 37 | . 4 23 10 Impact . | . . . . Kinetic 36 | . 4 22 10 Secondary 1 | . . 1 . Self-Inflicted Damage . | . . . . Shots . | . . . . Rammed 2 | . 2 . . Targets Rammed 2 | . 2 . . Kicked . | . . . . Crushed . | . . . . Highest Temperature 334 | . 90 334 . Average Temperature 52 | . 21 59 . Received Heat Transfer 368 | . . 20 348 Effects 3 | . . 3 . Shutdowns 1 | . . 1 . Energy Bleed 1 | . . 1 . Interference 1 | . . 1 . Siege Activations . | . . . . Martial Activations . | . . . . Shielding Activations . | . . . . Robots Disrupted . | . . . . Combat Hostiles . | . . . . Robots Corrupted . | . . . . Combat Hostiles . | . . . . Parts Fried . | . . . . Impact Corruptions . | . . . . Robots Melted . | . . . . Combat Hostiles . | . . . . Parts Melted . | . . . . Heat Transferred 733 | . 333 50 350 Parts Sabotaged . | . . . . Parts Stolen . | . . . . Parts Stripped . | . . . . Power Chain Reactions . | . . . . Alert | -11 -10 -10 -10 ------- Run | Yrd Mat Min Sub Maximum Alert Level . | . . . . Low Security (%) 100 | 100 100 100 . Level 1 . | . . . . Level 2 . | . . . . Level 3 . | . . . . Level 4 . | . . . . Level 5 . | . . . . High Security . | . . . . Max Security . | . . . . Peak Influence 71 | . 50 71 . Initial . | . . . . Average 2 | . 4 1 . Influence Increases 515 | . 192 88 235 Destroy 0b10 Robot/C 260 | . 120 40 100 Destroy 0b10 Robot/NC 35 | . 35 . . Destroy Leader 46 | . 36 10 . Disable Machine 4 | . . 4 . Destroy Structure 20 | . 1 19 . Lose Combat Pursuer 150 | . . 15 135 Influence Decreases 355 | . 192 88 75 Time Decay 325 | . 192 88 45 Lost Part 30 | . . . 30 Squads Dispatched . | . . . . Investigation . | . . . . Extermination . | . . . . Reinforcement . | . . . . Assault . | . . . . Garrison . | . . . . Intercept . | . . . . Searches Triggered . | . . . . Construction Impeded . | . . . . Haulers Reinforced . | . . . . Active Scanning Responses . | . . . . Cargo Convoy Interrupts . | . . . . Stealth | -11 -10 -10 -10 --------- Run | Yrd Mat Min Sub Distress Signals 1 | . 1 . . Communications Jammed . | . . . . Distress Signals . | . . . . Times Spotted 46 | . 11 17 18 Peak Tracking Total 5 | . 3 3 5 Tactical Retreats 5 | . . 1 4 Traps | -11 -10 -10 -10 ------- Run | Yrd Mat Min Sub Traps Triggered 4 | . 3 . 1 Indirectly . | . . . . Trap Hack Attempts . | . . . . Triggered . | . . . . Disarmed . | . . . . Reprogrammed . | . . . . Reused . | . . . . Traps Extracted . | . . . . Installed . | . . . . Triggered . | . . . . Machines | -11 -10 -10 -10 ---------- Run | Yrd Mat Min Sub Machines Disabled 2 | . . 1 1 Max in Single Turn 1 | . . 1 1 Machines Repaired . | . . . . Machines Dismantled . | . . . . Machines Sabotaged . | . . . . Overloaded Fab Kills . | . . . . Hacking | -11 -10 -10 -10 --------- Run | Yrd Mat Min Sub Machines Accessed 10 | . 7 . 3 Terminals 7 | . 7 . . Fabricators . | . . . . Repair Stations . | . . . . Recycling Units . | . . . . Scanalyzers . | . . . . Garrison Access . | . . . . Total Hacks 20 | . 16 . 4 Successful 18 | . 14 . 4 Failed 2 | . 2 . . Catastrophic . | . . . . Database Lockouts . | . . . . Manual 9 | . 9 . . Terminals 16 | . 16 . . Fabricators . | . . . . Repair Stations . | . . . . Recycling Units . | . . . . Scanalyzers . | . . . . Garrison Access . | . . . . Terminal Hacks 11 | . 7 . 4 Record 1 | . . . 1 Robot Analysis 1 | . 1 . . Open Door 1 | . . . 1 Zone Layout 6 | . 6 . . Proto ID Catalog 1 | . . . 1 Release Object 1 | . . . 1 Fabricator Hacks . | . . . . Repair Station Hacks . | . . . . Recycling Unit Hacks . | . . . . Scanalyzer . | . . . . Garrison Access Hacks . | . . . . Unauthorized Hacks 7 | . 7 . . Terminals 7 | . 7 . . Botnet 7 | . 7 . . Fabricators . | . . . . Repair Stations . | . . . . Recycling Units . | . . . . Scanalyzers . | . . . . Garrison Access . | . . . . Data Cores Recovered . | . . . . Used . | . . . . Hacking Detections 4 | . 4 . . Full Trace Events . | . . . . Feedback Events . | . . . . Feedback Blocked . | . . . . Robot Schematics Acquired . | . . . . Robots Built . | . . . . Authchips . | . . . . Time . | . . . . Total Robot Build Rating . | . . . . Part Schematics Acquired . | . . . . Parts Built . | . . . . Authchips . | . . . . Time . | . . . . Total Part Build Rating . | . . . . Part Studies Acquired . | . . . . Parts Repaired . | . . . . Time . | . . . . Parts Recycled . | . . . . Recycled Matter . | . . . . Retrieved Matter . | . . . . Retrieved Components . | . . . . Parts Scanalyzed . | . . . . Part Schematics Acquired . | . . . . Parts Damaged . | . . . . Bothacking | -11 -10 -10 -10 ------------ Run | Yrd Mat Min Sub Used RIF Installer . | . . . . Robots Hacked . | . . . . Non-combat . | . . . . Combat . | . . . . Robot Hacks Applied . | . . . . Relay Couplers Released . | . . . . Fabnet Peak Effective % . | . . . . Robots Rewired . | . . . . Allies Hacked . | . . . . Hacks Repelled . | . . . . Allies | -11 -10 -10 -10 -------- Run | Yrd Mat Min Sub Total Allies 3 | . . 3 . Largest Group 3 | . . 3 3 Highest-Rated Group 40 | . . 40 40 Highest-Rated Ally 16 | . . 16 16 Total Orders . | . . . . Ally Attacks 24 | . . 5 19 Total Damage 282 | . . 26 256 Kills 3 | . . . 3 Allies Corrupted . | . . . . Allies Melted . | . . . . Intel | -11 -10 -10 -10 ------- Run | Yrd Mat Min Sub Active Infowar (turns) . | . . . . Robot Analysis Total 1 | . 1 . . Derelict Logs Recovered 2 | . . 1 1 Drone Launches . | . . . . Drone Recoveries . | . . . . Exploration | -11 -10 -10 -10 ------------- Run | Yrd Mat Min Sub Turns Passed 6698 | 74 1096 2271 3257 Spaces Moved 2306 | 50 624 586 1046 Core 18 | 17 . . 1 Treads 2288 | 33 624 586 1045 Legs . | . . . . Wheels . | . . . . Hover . | . . . . Flight . | . . . . Fastest Speed 50 | 50 160 160 160 Average Speed 186 | 122 160 160 221 Slowest Speed 400 | 160 160 160 400 Overloaded Moves . | . . . . Propulsion Burnouts . | . . . . Robots Hopped . | . . . . Potential Cave-ins . | . . . . Cave-ins Triggered . | . . . . Exploration Rate (%) 61 | 4 86 98 56 Regions Visited 3 Branch Regions 2 Pre-discovered Areas 1 | . . 1 . Known Exits Taken 3 | 1 1 1 . Unknown Exits Taken . | . . . . Scrap Searched 2 | . . 2 . Spaces Dug 2 | . . 2 . Terrain Destroyed 24 | . . 24 . Melee . | . . . . Projectile 5 | . . 5 . AOE 19 | . . 19 . Terrain Rammed . | . . . . Walls Destroyed . | . . . . Machines Disabled . | . . . . Actions | -11 -10 -10 -10 --------- Run | Yrd Mat Min Sub Total 3826 | 62 670 1698 1396 Wait 1141 | . . 1023 118 Move 2303 | 49 623 585 1046 Hop . | . . . . Pick Up 21 | 6 7 5 3 Fast Attach 1 | 1 . . . Attach 16 | 6 4 2 4 Detach 6 | . 3 3 . Swap . | . . . . Drop 3 | . 3 . . Fire 333 | . 28 80 225 Melee . | . . . . Ram . | . . . . Kick . | . . . . Crush 2 | . 2 . . Escape Stasis . | . . . . Rewire . | . . . . Trap . | . . . . Miscellaneous . | . . . . Route ------- -11/Scrapyard -10/Materials (discovered 5 exits: *Mat x3 / *Min x2) -10/Mines (discovered 3 exits: *Mat x2 / *Sub) -10/Subcaves (discovered 3 exits: *Mat x2 / *Rec) History --------- Turn | Location | Event 4 | -11/Scrapyard | Identified exit to Materials 4 | -11/Scrapyard | Discovered exit to Materials (range 16) 75 | -11/Scrapyard | Entered Materials 75 | -10/Materials | Evolved 1 slot: Utility x1 209 | -10/Materials | Identified exit to Materials 209 | -10/Materials | Discovered exit to Materials (range 13) 302 | -10/Materials | Build established: Hacker-Mutant 451 | -10/Materials | Identified exit to Mines 451 | -10/Materials | Discovered exit to Mines (range 15) 451 | -10/Materials | Discovered exit to Materials (range 18) 943 | -10/Materials | Discovered exit to Materials (range 11) 1155 | -10/Materials | Discovered exit to Mines (range 11) 1171 | -10/Materials | Entered Mines 1172 | -10/Mines | Assembled infested the area 1177 | -10/Mines | Assisted by a Guerilla fighting off Assembled 1194 | -10/Mines | Found a hidden stash of uninstalled traps 1272 | -10/Mines | Learned location of Mines (-8) 1321 | -10/Mines | Discovered exit to Materials (range 5) 1591 | -10/Mines | Destroyed 8 combat bots 1677 | -10/Mines | Assisted by bots powering up and referring to "LRC-V3" 1699 | -10/Mines | Discovered exit to Materials (range 7) 3428 | -10/Mines | Identified exit to Subcaves 3428 | -10/Mines | Discovered exit to Subcaves (range 3) 3442 | -10/Mines | Entered Subcaves 3442 | -10/Subcaves | Accompanied by 3 allies 3443 | -10/Subcaves | Approached by a straggling Scientist 3514 | -10/Subcaves | Shifting Twisted Machinery released Sub. Laser 3527 | -10/Subcaves | A swath of the cavern ceiling suddenly collapsed 3602 | -10/Subcaves | Shifting Twisted Machinery released Sub. Power Source 3672 | -10/Subcaves | Shifting Twisted Machinery released Battle Rifle 4488 | -10/Subcaves | Identified exit to Materials 4488 | -10/Subcaves | Discovered exit to Materials (range 10) 4576 | -10/Subcaves | Lost 3 allies 4632 | -10/Subcaves | Core integrity fell below 50% 4673 | -10/Subcaves | Lost 4 parts (1n1u2w) 5433 | -10/Subcaves | Learned location of 1 exit from Materials 5576 | -10/Subcaves | Shifting Twisted Machinery released Shrapnel Trap 5588 | -10/Subcaves | Shifting Twisted Machinery released Sub. Beam Cannon 5990 | -10/Subcaves | Core integrity fell below 20% 6065 | -10/Subcaves | Discovered exit to Materials (range 7) 6179 | -10/Subcaves | Visited 4L-MR0's lab 6201 | -10/Subcaves | Found Power Bank 6691 | -10/Subcaves | Identified exit to Recycling 6691 | -10/Subcaves | Discovered exit to Recycling (range 11) 6699 | -10/Subcaves | Destroyed by Autobeam Turret with Autobeam Last Messages --------------- Delivery behind schedule, handle with care! 0P-DN5(c): "I think it's somewhere southeast of here" 0P-DN5(c): "I think it's somewhere south of here" 0P-DN5(c): "I think it's somewhere southwest of here" 06630_ Lgt. Cannon destroyed. 06638_ S-10 Pest destroyed. 06640_ Subatomizers dissect the Lgt. Ion Engine. 06643_ S-10 Pest destroyed. 06644_ Ion Engine destroyed. 06645_ S-10 Pest destroyed. 06647_ Acquired 14 matter. 06650_ S-10 Pest destroyed. 06666_ Subatomizers dissect the Lgt. Ion Engine. 06673_ Lgt. Treads destroyed. 06688_ Subatomizers dissect the Lgt. Ion Engine. 06689_ Autobeam Turret destroyed. 06691_ EXIT=FOUND: RECYCLING Map ----- +----------------------------------------------------+ | ?????????????????????????????????????????????????? | | ?????????????????????????????????????????????????? | | ?????????????????????????????????????????????????? | | ?????????????????????????????????????????????????? | | #???????????????????????####?????????????????????? | | #####?????????????????### ##????????????????????? | | ##????????????##### #####????????????????? | | ##????###????# ## ##???????????????? | | ###### ##???# #???????????????? | | #??## ##??????????????? | | #??# ### #??????????????? | | ### ##?# #?# ##??????????????? | | ##?###### #### ### #???????????????? | | ##??????# ### ## #???????????????? | | #??##### #???????????????? | | #??# ### ##??????????????? | | #??# ### % ## #?# #??????????????? | | #??## ??## *% ==#### #?## #??????????????? | | #??### ???###%= ##?###??# #??????????????? | | ### #???# ?????#* ### #??# #??????????????? | | ???# ??#?????# ## ##?## ##??????????????? | | ???? ???????## c #??###???????????????? | | ???? ????????# ##????????????????????? | | ?????# ????????## ##????????????????????? | | ??????? ??????????## ## #?????????? | | ???????????#??####??#### @ #??????????? | | ?###?????? ## #?????# ### #???????????? | | ## ##???? #?????## ##?????????????????? | | #### #????????# ###??????????????????? | | < # #???????? ???????????????????? | | #??????????? ??????????????????? | | ## #??????????? #?????????????????? | | ?# ###### #??????????? t% "#?????????????????? | | ## #??????????????????? " " "#?????????????????? | | # ####????????????????"" """"#?????????????????? | | #???????????????###>#####?????????????????? | | #?????????????????##?????????????????????? | | # #????????????????????????????????????????? | | # ##????????????????????????????????????????? | | # ###?????????????????????????????????????????? | | # #???????????????????????????????????????????? | | # #???????????????????????????????????????????? | | ????????????????????????????????????????? | | %= #???????????????????????????????????????? | | # # ????????????????????????????????????????? | | # #????????????????????????????????????????? | | # # ????????????????????????????????????????? | | ## # ?#???????????????????????????????????????? | | ??# ##? ?????????????????????????????????????????? | | ???##????????????????????????????????????????????? | +----------------------------------------------------+ Best States ------------- Heat Dissipation 25 Energy Generation 10 Energy Capacity 250 Matter Stores 300 Matter Capacity 300 Sight Range 16 Terrain Scan Density 10 Armor Coverage 150 Resistance: KI 35 Resistance: TH 35 Resistance: EX 35 Resistance: EM 35 Resistance: I 35 Resistance: S 35 Resistance: P 35 Evasion (%) 50 Recoil Reduction 2 Offensive Hacking 20 Item Schematics ----------------- None Robot Schematics ------------------ None Fabricated ------------ Nothing Repaired ---------- Nothing Studied --------- None Alien Tech Used ----------------- None Achievements -------------- None Challenges ------------ None Game ------ Seed WeldingOpticalBeacon Manual? 0 Play Time 00:30:41 Cumulative 139.4 hours Start 2025.11.25 @ 07:33:11 End 2025.11.25 @ 07:54:43 Sessions 1 Manual Loads 0 Difficulty Explorer Special Mode None Game No. 163 Rogue 0 Adventurer 0 Explorer 163 Win Type - Total 0 Types 0/0/0/0/0/0/0/0/0/0 Lore% 68 Gallery% 66 Achievement% 51 Wizard Run 0 Options --------- Layout 1 ASCII 0 Keyboard 0 Movement Mouse Keybinds 0 Fullscreen 1 Font 24/Smallcaps Map View 50x35 Zoom Use 0% Tactical HUD 1 Map Filters NONE Filters NONE Steam 1 RUN: 76d05ccb-aa02-47a1-a2fa-4cc7cb39f777